bitfinex/quotes_ETHUSD_20241018
["timestamp","ask_amount","ask_price","bid_price","bid_amount"]
[1729246801767,1.66906757,2627.5,2627.3,7.6124]
[1729246801980,0.7985,2627.9,2627.4,3.80602]
[1729246802164,1.66906757,2628.0,2627.5,0.8253]
[1729246802366,1.66906757,2627.9,2627.6,3.80573]
[1729246802767,3.80503,2628.1,2627.6,3.80567]
[1729246802969,1.66906757,2627.9,2627.6,3.80567]
[1729246803158,1.66906757,2627.9,2627.6,4.93598726]
[1729246804202,1.66906757,2627.9,2627.7,7.6112]
[1729246804411,2.43966757,2627.8,2627.7,7.6112]
[1729246804562,6.24512757,2627.8,2627.7,7.6112]
[1729246805955,6.24512757,2627.8,2627.7,7.66043307]
[1729246806357,7.41708608,2627.8,2627.7,7.66043307]
[1729246809364,3.80539,2627.9,2627.7,7.66043307]
[1729246809595,1.66906757,2627.8,2627.7,7.66043307]
[1729246811085,1.66906757,2628.0,2627.7,7.66043307]
[1729246811503,1.66906757,2627.9,2627.7,7.66043307]
[1729246811993,3.80519,2628.0,2627.7,7.66043307]
[1729246812516,3.80511,2628.1,2627.7,7.66043307]
[1729246812914,3.80481,2628.3,2627.8,0.7759]
[1729246813117,3.80481,2628.3,2627.9,0.04903788]
[1729246813118,3.80474,2628.3,2627.9,0.04903788]
[1729246814774,3.80505,2628.1,2627.9,0.04903788]
[1729246814979,3.80505,2628.1,2627.7,7.6112]
[1729246815287,4.60008,2628.2,2627.8,0.04913676]
[1729246815491,4.60008,2628.2,2627.8,1.60598568]
[1729246815800,4.60008,2628.2,2627.9,0.04903788]
[1729246817391,4.60008,2628.2,2627.9,0.10612399]
[1729246820883,3.80504,2628.1,2627.9,0.10612399]
[1729246821104,4.60008,2628.2,2627.9,0.10612399]
[1729246821778,3.8051,2628.1,2627.9,0.10612399]
[1729246821974,8.33047592,2628.2,2627.9,0.10612399]
[1729246822178,3.80503,2628.1,2627.9,0.10612399]
[1729246822977,3.80517,2628.0,2627.9,0.10612399]
[1729246824411,3.80503,2628.1,2627.9,0.10612399]
[1729246824722,0.7952,2628.2,2627.9,0.10612399]
[1729246825014,4.60012,2628.2,2627.9,0.10612399]
[1729246825434,3.80505,2628.1,2627.9,0.10612399]
[1729246827283,4.60012,2628.2,2627.9,0.10612399]
[1729246827896,8.4051,2628.2,2627.9,0.10612399]
[1729246828490,3.80492,2628.2,2627.9,0.10612399]
[1729246829327,8.29309592,2628.4,2627.9,0.10612399]
[1729246829634,4.5627,2628.4,2628.0,0.7792]
[1729246829991,3.8047,2628.4,2628.1,0.04866271]
[1729246830493,7.60937,2628.4,2628.1,0.04866271]
[1729246830924,3.80474,2628.3,2628.1,0.04866271]
[1729246832328,3.80474,2628.3,2628.1,0.09473416]
[1729246833808,1.66920558,2628.2,2628.1,0.09473416]
[1729246835733,5.47408558,2628.2,2628.1,0.09473416]
[1729246835928,1.66920558,2628.2,2627.9,0.05708611]
[1729246836139,1.66920558,2628.2,2628.1,0.09482971]
[1729246836471,1.66920558,2628.2,2627.9,0.05708611]
[1729246836631,1.66920558,2628.2,2628.1,0.09482971]
[1729246836831,1.66920558,2628.2,2628.0,0.0949304]
[1729246837135,1.66920558,2628.2,2628.1,0.09482971]
[1729246837334,1.66920558,2628.2,2627.9,0.05708611]
[1729246837535,1.66920558,2628.2,2628.1,0.09482971]
[1729246837864,0.7992,2628.3,2627.9,3.86229611]
[1729246838052,5.47380558,2628.4,2628.1,0.90282971]
[1729246838263,5.47380558,2628.4,2628.1,0.808]
[1729246838473,5.47380558,2628.4,2628.2,0.09472904]
[1729246838638,5.47394558,2628.3,2628.2,0.09472904]
[1729246839046,5.47394558,2628.3,2627.9,0.84798611]
[1729246839047,7.60988,2628.2,2627.9,0.84798611]
[1729246839383,1.66920558,2628.0,2627.9,0.05708611]
[1729246839543,7.14358116,2628.0,2627.9,0.05708611]
[1729246839745,7.14358116,2628.0,2627.7,7.6112]
[1729246839746,3.80546,2627.8,2627.7,7.6112]
[1729246840064,6.27396558,2627.8,2627.7,7.6112]
[1729246840381,7.4488157,2627.8,2627.7,7.6112]
[1729246841938,5.77961012,2627.8,2627.7,7.6112]
[1729246845273,3.80533,2627.9,2627.7,7.6112]
[1729246846264,3.8052,2628.0,2627.7,7.6112]
[1729246846643,3.80513,2628.1,2627.7,7.6112]
[1729246846978,3.80525,2628.0,2627.7,7.6112]
[1729246847962,3.80513,2628.1,2627.7,7.6112]
[1729246848346,3.80519,2628.0,2627.7,7.6112]
[1729246849677,3.80533,2627.9,2627.7,7.6112]
[1729246850172,3.80513,2628.1,2627.7,7.6112]
[1729246850561,7.6103,2628.1,2627.7,7.6112]
[1729246850766,3.80521,2628.0,2627.7,7.6112]
[1729246851081,3.80521,2628.0,2627.8,0.09230616]
[1729246851466,3.80521,2628.0,2627.7,8.95157235]
[1729246851653,3.80521,2628.0,2627.9,0.09220546]
[1729246851853,3.80521,2628.0,2627.8,0.09230616]
[1729246852168,3.80521,2628.0,2627.9,0.09220546]
[1729246852377,3.80513,2628.1,2627.7,7.6112]
[1729246852680,7.61027,2628.1,2627.9,0.09220546]
[1729246852879,3.80513,2628.1,2627.8,0.09230616]
[1729246853052,3.80513,2628.1,2628.0,0.09210477]
[1729246853257,7.61024,2628.1,2627.9,0.09220546]
[1729246853458,3.80511,2628.1,2628.0,0.09210477]
[1729246853777,7.61023,2628.1,2627.7,7.6112]
[1729246853981,3.80511,2628.1,2628.0,0.09205857]
[1729246854195,3.80511,2628.1,2627.8,1.68969735]
[1729246854339,3.80511,2628.1,2628.0,0.09205857]
[1729246854545,3.80511,2628.1,2627.8,1.68969735]
[1729246854889,3.80511,2628.1,2628.0,0.09210731]
[1729246855084,3.80511,2628.1,2627.9,0.092208]
[1729246855389,3.80511,2628.1,2628.0,0.09210731]
[1729246858551,3.80511,2628.1,2627.8,0.809]
[1729246858759,3.80511,2628.1,2628.0,0.09210474]
[1729246858975,7.61021,2628.1,2627.8,0.809]
[1729246859284,3.8051,2628.1,2628.0,0.09210474]
[1729246859489,3.8051,2628.1,2627.9,0.09220543]
[1729246859784,3.8051,2628.1,2628.0,0.09210474]
[1729246860081,3.8051,2628.1,2627.8,0.809]
[1729246860392,3.8051,2628.1,2627.9,0.09220543]
[1729246860692,4.57477,2628.0,2627.9,0.09220543]
[1729246860860,8.30596731,2628.0,2627.9,0.09220543]
[1729246861222,3.80546,2627.8,2627.7,7.6112]
[1729246863851,5.47522144,2627.8,2627.7,7.6112]
[1729246864055,7.39781273,2627.8,2627.7,7.6112]
[1729246866007,7.39781273,2627.8,2627.7,7.70359402]
[1729246880338,6.22582144,2627.8,2627.7,7.70359402]
[1729246884500,4.55606,2627.8,2627.7,7.70359402]
[1729246884701,6.22582144,2627.8,2627.7,7.70359402]
[1729246885134,5.47522144,2627.8,2627.7,7.70359402]
[1729246886618,3.80546,2627.8,2627.7,7.70359402]
[1729246886813,5.47522144,2627.8,2627.7,7.70359402]
[1729246889952,5.47522144,2627.8,2627.7,7.70359402]
[1729246895760,6.64738273,2627.8,2627.7,7.69729135]
[1729246896738,10.45978273,2627.8,2627.7,7.69729135]
[1729246896937,10.46978273,2627.8,2627.7,7.69729135]
[1729246897171,10.47978273,2627.8,2627.7,7.69729135]
[1729246916859,10.47978273,2627.8,2627.7,0.08609135]
[1729246917063,10.47978273,2627.8,2627.1,0.8026]
[1729246917064,3.0,2627.7,2627.1,0.8026]
[1729246917282,5.47609144,2627.2,2627.1,0.8026]
[1729246919572,3.80693,2626.8,2626.6,0.7929]
[1729246919775,1.66976144,2626.7,2626.6,0.7929]
[1729246920191,3.80693,2626.8,2626.6,0.7929]
[1729246920192,5.47669144,2626.8,2626.6,0.7929]
[1729246920769,1.66976144,2626.7,2626.6,0.7929]
[1729246921366,5.47669144,2626.8,2626.6,0.7929]
[1729246921566,1.66976144,2626.7,2626.6,0.7929]
[1729246922394,5.47681144,2626.7,2626.6,0.7929]
[1729246923215,1.66976144,2626.7,2626.6,0.7929]
[1729246923427,3.80693,2626.8,2626.6,0.7929]
[1729246923718,5.47669144,2626.8,2626.6,0.7929]
[1729246924518,5.47669144,2626.8,2626.7,0.09356864]
[1729246926326,6.40503658,2626.8,2626.7,0.09356864]
[1729246926620,3.80734,2626.5,2626.4,0.86181944]
[1729246926830,5.47710144,2626.5,2626.4,0.86181944]
[1729246926994,5.47710144,2626.5,2626.4,0.95577775]
[1729246928277,1.66976144,2626.6,2626.4,0.95577775]
[1729246928521,5.47683144,2626.7,2626.5,0.7515]
[1729246928817,9.28399144,2626.7,2626.5,0.7515]
[1729246929071,9.28399144,2626.7,2626.6,0.09380805]
[1729246929547,5.47683144,2626.7,2626.6,0.09380805]
[1729246930535,3.80666,2627.0,2626.7,0.7515]
[1729246930775,3.80691,2626.8,2626.7,0.7515]
[1729246931369,5.47667144,2626.8,2626.7,0.7515]
[1729246931556,3.80679,2626.9,2626.7,0.7515]
[1729246931756,3.8064,2627.2,2626.7,3.80697]
[1729246932081,11.15566,2627.7,2626.7,3.80697]
[1729246932082,5.47602144,2627.3,2626.9,0.823]
[1729246932250,1.66976144,2627.2,2626.9,0.823]
[1729246932965,5.47617144,2627.2,2626.9,0.823]
[1729246933378,9.28260144,2627.2,2626.9,0.823]
[1729246933581,5.47631144,2627.1,2626.9,0.823]
[1729246933801,1.66976144,2627.1,2626.9,0.823]
[1729246936462,5.47617144,2627.2,2626.9,0.823]
[1729246936775,9.28260144,2627.2,2626.9,0.823]
[1729246937086,1.66976144,2627.1,2626.9,0.823]
[1729246937586,7.61225,2627.4,2627.0,0.7792]
[1729246937749,5.47587144,2627.4,2627.0,0.7792]
[1729246938261,1.66976144,2627.3,2627.0,0.7792]
[1729246939862,1.66976144,2627.2,2627.0,0.7792]
[1729246940993,1.66976144,2627.3,2627.1,0.09324769]
[1729246941180,3.0,2627.6,2627.2,0.7792]
[1729246941181,3.80577,2627.6,2627.2,0.7792]
[1729246941391,1.66976144,2627.5,2627.2,4.58551]
[1729246941587,1.66976144,2627.5,2627.3,0.09304619]
[1729246941796,3.80549,2627.8,2627.3,0.94153781]
[1729246941964,1.66976144,2627.6,2627.4,0.7792]
[1729246942172,13.63754144,2628.0,2627.5,0.7792]
[1729246942173,3.80528,2628.0,2627.5,0.7792]
[1729246942473,1.66976144,2627.9,2627.6,0.7792]
[1729246942694,1.66976144,2627.9,2627.6,1.34735622]
[1729246943570,3.80528,2628.0,2627.6,1.34735622]
[1729246944097,3.80498,2628.2,2627.8,0.8068]
[1729246944403,3.80474,2628.3,2627.9,0.89619172]
[1729246944694,1.66976144,2628.2,2627.9,0.89619172]
[1729246944853,3.80452,2628.5,2627.9,0.89619172]
[1729246945049,1.66976144,2628.2,2628.0,0.7572]
[1729246945273,1.66976144,2628.2,2628.1,0.08902353]
[1729246954609,1.66976144,2628.3,2628.1,0.08902353]
[1729246954814,1.66976144,2628.2,2628.1,0.08902353]
[1729246954966,5.47451144,2628.3,2628.1,0.08902353]
[1729246955166,1.66976144,2628.2,2628.1,0.08902353]
[1729246955410,3.80455,2628.5,2628.1,0.08902353]
[1729246955411,1.66976144,2628.4,2628.1,0.08902353]
[1729246956268,3.0,2628.7,2628.1,0.55417588]
[1729246956474,3.80431,2628.6,2628.2,0.816]
[1729246956694,1.66976144,2628.5,2628.3,0.08848092]
[1729246958109,5.47421144,2628.5,2628.3,0.08848092]
[1729246958508,5.47435144,2628.4,2628.3,0.08848092]
[1729246965726,1.66976144,2628.4,2628.3,0.08848092]
[1729246966729,3.80448,2628.5,2628.3,0.08848092]
[1729246966959,1.66976144,2628.6,2628.3,0.08848092]
[1729246967262,3.830193,2628.8,2628.3,3.89313092]
[1729246967475,5.49995444,2628.8,2628.4,0.8255]
[1729246967628,3.830193,2628.8,2628.4,0.8255]
[1729246967963,1.66976144,2628.7,2628.5,0.08824627]
[1729246968464,5.47395144,2628.7,2628.5,0.08824627]
[1729246968962,1.66976144,2628.6,2628.5,0.08824627]
[1729246970366,5.47395144,2628.7,2628.5,0.08824627]
[1729246971565,1.66976144,2628.7,2628.5,0.08824627]
[1729246972033,1.66976144,2628.6,2628.5,0.08824627]
[1729246972533,1.66976144,2628.7,2628.5,0.08824627]
[1729246973227,0.026123,2628.8,2628.5,3.89258627]
[1729246973432,1.66976144,2628.7,2628.6,0.8234]
[1729246973894,1.66976144,2628.7,2628.6,0.91141995]
[1729246976069,1.66976144,2628.7,2628.6,0.08801995]
[1729246976286,1.66976144,2628.7,2628.4,0.8201]
[1729246976452,1.66976144,2628.6,2628.4,0.8201]
[1729246976797,1.66976144,2628.6,2628.5,0.08799007]
[1729246977375,3.830163,2628.8,2628.5,0.08799007]
[1729246977573,5.49992444,2628.8,2628.5,0.08799007]
[1729246977799,1.66976144,2628.7,2628.5,0.08799007]
[1729246978303,0.026123,2628.8,2628.7,3.80416]
[1729246978456,0.026123,2628.8,2628.7,6.37009677]
[1729246978659,0.026123,2628.8,2628.7,6.45786504]
[1729246979402,0.026123,2628.8,2628.7,4.7881036]
[1729246979601,0.026123,2628.8,2628.7,5.86790488]
[1729246980904,0.026123,2628.8,2628.7,2.06374488]
[1729246981069,0.026123,2628.8,2628.7,0.90786827]
[1729246981273,0.026123,2628.8,2628.7,4.71202827]
[1729246981984,0.026123,2628.8,2628.7,0.90786827]
[1729246982298,1.69588444,2628.8,2628.7,0.08776827]
[1729246982469,1.69588444,2628.8,2628.5,1.30784781]
[1729246982676,0.026123,2628.8,2628.7,0.7719]
[1729246983099,0.026123,2628.8,2628.7,0.85966827]
[1729246983416,0.026123,2628.8,2628.7,0.08776827]
[1729246983777,0.026123,2628.8,2628.5,3.86150346]
[1729246983977,0.026123,2628.8,2628.7,0.08776827]
[1729246984468,0.026123,2628.8,2628.5,0.05707346]
[1729246984771,0.026123,2628.8,2628.6,0.08786891]
[1729246984976,1.69588444,2628.8,2628.6,0.08786891]
[1729246985506,0.026123,2628.8,2628.6,0.08786891]
[1729246986787,0.026123,2628.8,2628.7,0.7924]
[1729246987216,0.026123,2628.8,2628.7,0.8800939]
[1729246989616,0.026123,2628.8,2628.7,0.0876939]
[1729246989925,0.026123,2628.8,2628.5,4.63923346]
[1729246990125,0.026123,2628.8,2628.6,0.08779454]
[1729246991015,1.69588444,2628.8,2628.6,0.08779454]
[1729246991220,0.026123,2628.8,2628.6,0.08779454]
[1729246991417,1.69588444,2628.8,2628.6,0.08779454]
[1729246992595,0.026123,2628.8,2628.6,0.08779454]
[1729246995491,1.66976144,2628.7,2628.6,0.08779454]
[1729246995819,0.026123,2628.8,2628.6,0.08779454]
[1729247002028,0.026123,2628.8,2628.6,3.89207454]
[1729247002608,0.026123,2628.8,2628.6,0.08779454]
[1729247006063,0.026123,2628.8,2628.6,0.86039454]
[1729247006259,0.026123,2628.8,2628.6,5.59013073]
[1729247006465,0.026123,2628.8,2628.7,3.80416]
[1729247006756,0.026123,2628.8,2628.7,3.89168728]
[1729247006961,0.026123,2628.8,2628.7,0.08752728]
[1729247007874,0.026123,2628.8,2628.7,6.83214775]
[1729247008085,0.026123,2628.8,2628.7,9.60039627]
[1729247008243,0.7843,2629.5,2629.1,3.80349]
[1729247008639,2.45406144,2629.5,2629.2,0.0870242]
[1729247009985,0.7843,2629.5,2629.2,0.0870242]
[1729247010182,2.45406144,2629.5,2629.2,0.0870242]
[1729247010386,6.25708144,2629.5,2629.2,0.0870242]
[1729247010588,0.7843,2629.5,2629.2,0.0870242]
[1729247010773,0.7843,2629.5,2629.2,0.2923592]
[1729247010977,5.47255144,2629.7,2629.2,0.2923592]
[1729247011186,5.47255144,2629.7,2629.2,4.0957092]
[1729247011187,1.66976144,2629.6,2629.2,4.0957092]
[1729247011491,5.47255144,2629.7,2629.2,4.0957092]
[1729247011688,5.47255144,2629.7,2629.3,1.03415706]
[1729247011996,9.27536144,2629.7,2629.4,0.08682302]
[1729247012171,5.47255144,2629.7,2629.4,0.08682302]
[1729247012360,5.47255144,2629.7,2629.2,4.008685]
[1729247012561,1.66976144,2629.6,2629.3,0.08683647]
[1729247012774,7.35,2630.1,2629.5,1.66976144]
[1729247012775,4.62983,2630.1,2629.5,1.66976144]
[1729247012946,3.95189,2630.2,2629.7,5.47247144]
[1729247013149,0.1499,2630.2,2629.9,3.80239]
[1729247013346,0.1499,2630.2,2629.8,0.97497985]
[1729247013347,0.1499,2630.2,2630.0,3.88827254]
[1729247013546,0.1499,2630.2,2630.0,0.93646779]
[1729247013781,0.1499,2630.2,2630.0,0.08613254]
[1729247013964,0.1499,2630.2,2629.8,0.8126]
[1729247014145,0.1499,2630.2,2629.9,0.0861972]
[1729247014347,0.7803,2630.1,2629.6,8.35549]
[1729247014593,0.7803,2630.1,2629.7,0.0863983]
[1729247014957,6.25222144,2630.1,2629.7,0.0863983]
[1729247015292,6.89243358,2630.1,2629.7,0.0863983]
[1729247015505,1.66976144,2630.0,2629.7,0.0863983]
[1729247015656,6.89243358,2630.1,2629.7,0.0863983]
[1729247016002,5.22267214,2630.1,2629.7,0.0863983]
[1729247016561,9.02490214,2630.1,2629.7,0.0863983]
[1729247016895,5.22267214,2630.1,2629.7,0.88275927]
[1729247017095,4.58246,2630.1,2629.7,0.88275927]
[1729247018680,3.9519,2630.2,2629.7,4.68541927]
[1729247019490,3.9519,2630.2,2629.7,3.8890583]
[1729247023205,3.9519,2630.2,2629.7,4.77720368]
[1729247023206,0.1499,2630.2,2629.7,4.77720368]
[1729247023364,0.1499,2630.2,2629.8,3.80254]
[1729247023563,0.1499,2630.2,2629.9,0.0859512]
[1729247026676,0.1499,2630.2,2629.9,3.8883712]
[1729247027006,3.80193,2630.3,2629.9,3.8883712]
[1729247027167,3.80193,2630.3,2629.9,0.0859512]
[1729247027366,7.60856,2630.7,2630.1,3.80205]
[1729247027705,4.60856,2630.7,2630.2,0.08564451]
[1729247027907,3.80149,2630.6,2630.2,0.08564451]
[1729247029311,3.80163,2630.5,2630.2,0.08564451]
[1729247029609,3.80163,2630.5,2630.0,0.8267]
[1729247029912,7.60328,2630.5,2630.3,0.08554399]
[1729247030069,4.93750594,2630.6,2630.0,0.8267]
[1729247030070,3.80178,2630.4,2630.0,0.8267]
[1729247030265,4.62183,2630.3,2629.9,0.05704423]
[1729247030474,3.80206,2630.2,2629.9,0.05704423]
[1729247031075,3.80206,2630.2,2630.0,0.08584556]
[1729247031415,0.8199,2630.3,2630.0,0.08584556]
[1729247031416,3.80213,2630.1,2630.0,0.08584556]
[1729247031790,4.62189,2630.3,2630.0,0.08584556]
[1729247031994,3.80204,2630.2,2630.0,0.08584556]
[1729247033113,3.80213,2630.1,2630.0,0.08584556]
[1729247033620,3.80199,2630.2,2630.0,0.08584556]
[1729247034518,0.8199,2630.3,2630.0,0.08584556]
[1729247034703,7.60363,2630.4,2630.0,0.08584556]
[1729247034895,3.79934497,2630.3,2630.0,0.08584556]
[1729247035090,3.80181,2630.4,2630.0,0.08584556]
[1729247035297,3.80181,2630.4,2630.1,0.8066]
[1729247035593,3.80181,2630.4,2630.2,0.08564451]
[1729247035819,1.66649932,2630.3,2630.2,0.08564451]
[1729247041007,6.47343525,2630.3,2630.2,0.08564451]
[1729247041192,0.7648,2630.2,2629.9,0.05704423]
[1729247041391,3.80221,2630.1,2630.0,0.08582506]
[1729247041592,5.46870932,2630.1,2630.0,0.08582506]
[1729247044842,6.47226125,2630.1,2630.0,0.08582506]
[1729247051372,5.46870932,2630.1,2630.0,0.08582506]
[1729247052040,3.80221,2630.1,2630.0,0.08582506]
[1729247052427,5.46848932,2630.2,2630.0,0.08582506]
[1729247052629,3.0,2630.3,2630.1,0.7831]
[1729247052832,0.8038,2630.7,2630.1,4.27488393]
[1729247052833,3.80127,2630.7,2630.1,4.27488393]
[1729247053036,3.80127,2630.7,2630.2,0.84504949]
[1729247053373,1.66649932,2630.6,2630.2,0.84504949]
[1729247054062,5.46793932,2630.6,2630.2,0.84504949]
[1729247054283,3.80121,2630.8,2630.3,4.31375134]
[1729247054284,1.66649932,2630.8,2630.3,4.31375134]
[1729247054459,5.46765932,2630.8,2630.3,4.31375134]
[1729247054662,3.80116,2630.8,2630.4,0.08533574]
[1729247054863,1.66649932,2630.6,2630.4,0.08533574]
[1729247055183,1.66649932,2630.5,2630.4,0.08533574]
[1729247055351,0.7672,2630.9,2630.2,0.7594]
[1729247055553,0.7672,2630.9,2630.3,0.08537735]
[1729247055554,1.66649932,2630.5,2630.3,0.08537735]
[1729247055882,3.80136,2630.7,2630.3,0.08537735]
[1729247056766,4.48999313,2630.9,2630.3,0.08537735]
[1729247056970,3.80149,2630.6,2630.3,0.08537735]
[1729247057300,3.8017,2630.4,2630.3,0.08537735]
[1729247057660,3.8017,2630.4,2630.1,0.0570392]
[1729247057861,3.8017,2630.4,2630.3,0.08537735]
[1729247058093,3.8017,2630.4,2630.2,0.08547786]
[1729247058294,3.8017,2630.4,2630.3,0.08537735]
[1729247058699,3.80185,2630.3,2630.1,0.0570392]
[1729247059203,3.80199,2630.2,2630.1,0.0570392]
[1729247059800,3.80199,2630.2,2629.8,1.97972582]
[1729247059999,3.80171,2630.4,2629.8,6.97597113]
[1729247060297,3.80171,2630.4,2629.9,3.8024]
[1729247060671,7.60349,2630.4,2629.9,3.8024]
[1729247060871,3.80171,2630.4,2629.9,7.6048]
[1729247061079,3.80171,2630.4,2630.0,0.08567892]
[1729247061280,3.80171,2630.4,2630.1,0.786]
[1729247061601,3.80171,2630.4,2630.2,0.08547786]
[1729247061783,3.80149,2630.6,2630.2,0.08547786]
[1729247061985,3.80158,2630.5,2630.2,0.08547786]
[1729247064733,3.80171,2630.4,2630.2,0.08547786]
[1729247065033,3.80149,2630.6,2630.2,0.08547786]
[1729247065335,3.80156,2630.5,2630.2,0.08547786]
[1729247065841,3.80149,2630.6,2630.2,0.08547786]
[1729247066000,3.80155,2630.5,2630.2,0.08547786]
[1729247066842,3.80149,2630.6,2630.2,0.08547786]
[1729247067192,7.60302,2630.6,2630.2,0.08547786]
[1729247067609,3.80149,2630.6,2630.2,0.08547786]
[1729247068030,7.60299,2630.6,2630.2,0.08547786]
[1729247068215,3.80149,2630.6,2630.2,0.08547786]
[1729247068434,7.60301,2630.6,2630.2,0.08547786]
[1729247068802,3.80158,2630.5,2630.2,0.08547786]
[1729247071695,3.80149,2630.6,2630.2,0.08547786]
[1729247071904,3.80162,2630.5,2630.2,0.08547786]
[1729247075809,5.46790815,2630.5,2630.2,0.08547786]
[1729247076843,1.66628815,2630.5,2630.2,0.08547786]
[1729247077008,5.46785815,2630.5,2630.2,0.67402341]
[1729247077949,1.66628815,2630.4,2630.2,0.67402341]
[1729247081001,5.46785815,2630.5,2630.2,0.67402341]
[1729247081792,3.80141,2630.6,2630.2,0.67402341]
[1729247081997,1.66628815,2630.6,2630.3,0.8094]
[1729247082294,1.66628815,2630.5,2630.4,0.621306]
[1729247082489,1.66628815,2630.5,2630.4,0.08516927]
[1729247083468,5.46783815,2630.5,2630.4,0.08516927]
[1729247085874,5.46783815,2630.5,2630.1,0.7969]
[1729247086077,1.66628815,2630.4,2630.1,0.7969]
[1729247086279,1.66628815,2630.4,2630.2,0.94800296]
[1729247086606,1.66628815,2630.4,2630.1,0.7969]
[1729247086607,1.66628815,2630.3,2630.1,0.7969]
[1729247087004,1.66628815,2630.2,2630.1,0.7969]
[1729247088195,5.46820815,2630.3,2630.1,0.7969]
[1729247089518,1.66628815,2630.2,2630.1,0.7969]
[1729247089734,5.46820815,2630.3,2630.1,0.7969]
[1729247090927,5.46820815,2630.3,2630.2,0.08532676]
[1729247091794,1.66628815,2630.3,2630.2,0.08532676]
[1729247092581,5.46798815,2630.4,2630.2,0.08532676]
[1729247092811,3.80184,2630.3,2630.2,0.08532676]
[1729247093122,1.66628815,2630.4,2630.2,0.08532676]
[1729247093123,5.46805815,2630.4,2630.2,0.08532676]
[1729247093506,1.66628815,2630.3,2630.2,0.08532676]
[1729247094519,5.46812815,2630.3,2630.2,0.08532676]
[1729247094828,1.66628815,2630.3,2630.2,0.08532676]
[1729247095003,6.01491596,2630.3,2629.9,0.7572]
[1729247095204,1.66628815,2630.2,2630.0,0.08552782]
[1729247096829,1.66628815,2630.1,2630.0,0.08552782]
[1729247097330,1.66628815,2630.1,2629.8,1.19372582]
[1729247097535,1.66628815,2630.1,2630.0,0.08552782]
[1729247097692,1.66628815,2630.1,2629.9,0.08562836]
[1729247097892,1.66628815,2630.1,2630.0,0.08552782]
[1729247098317,5.46841815,2630.2,2629.8,1.19372582]
[1729247098557,5.46841815,2630.2,2630.0,0.08552782]
[1729247098848,5.46841815,2630.2,2630.1,0.08542729]
[1729247099233,5.46841815,2630.2,2629.8,1.19372582]
[1729247099431,1.66628815,2630.2,2629.9,0.08567443]
[1729247099761,4.55624,2630.3,2629.9,0.08567443]
[1729247099961,5.46811815,2630.4,2630.0,0.783]
[1729247100259,1.66628815,2630.3,2630.1,0.08547335]
[1729247100462,5.46811815,2630.4,2630.1,0.08547335]
[1729247100754,1.66628815,2630.3,2630.1,0.08547335]
[1729247101069,5.46811815,2630.4,2630.1,0.08547335]
[1729247101220,3.80165,2630.5,2630.1,0.67193427]
[1729247101559,1.66628815,2630.4,2630.1,0.67193427]
[1729247101918,3.80165,2630.5,2630.1,0.67193427]
[1729247101919,5.46812815,2630.3,2630.1,0.67193427]
[1729247102263,5.46812815,2630.3,2630.1,0.08547335]
[1729247102561,1.66628815,2630.2,2630.1,0.08547335]
[1729247102719,5.46812815,2630.3,2630.1,0.08547335]
[1729247108565,1.66628815,2630.4,2630.1,0.08547335]
[1729247108760,5.46809815,2630.4,2630.1,0.08547335]
[1729247109761,5.46815815,2630.3,2630.1,0.08547335]
[1729247110147,3.80187,2630.3,2630.1,0.08547335]
[1729247110443,1.66628815,2630.4,2630.1,0.08547335]
[1729247110653,5.46798815,2630.4,2630.1,0.08547335]
[1729247112570,3.80187,2630.3,2630.1,0.08547335]
[1729247112728,3.80155,2630.5,2630.1,4.47404527]
[1729247113066,5.46783815,2630.5,2630.1,4.47404527]
[1729247113472,1.66628815,2630.5,2630.1,4.47404527]
[1729247113678,1.66628815,2630.5,2630.1,5.66777109]
[1729247113969,1.66628815,2630.5,2630.2,0.64507711]
[1729247114346,1.66628815,2630.5,2630.3,0.08525695]
[1729247114873,3.80131,2630.7,2630.3,0.08525695]
[1729247115088,3.8008,2631.1,2630.6,1.66628815]
[1729247115373,3.8008,2631.1,2630.7,0.7691]
[1729247115540,3.8008,2631.1,2630.7,0.85392679]
[1729247116573,5.46708815,2631.1,2630.7,0.85392679]
[1729247117880,1.66628815,2630.8,2630.7,0.85392679]
[1729247118174,1.66628815,2630.8,2630.7,0.08482679]
[1729247118880,5.46728815,2630.9,2630.7,0.08482679]
[1729247128173,1.66628815,2630.8,2630.7,0.08482679]
[1729247129574,5.46740815,2630.8,2630.7,0.08482679]
[1729247129742,6.39424896,2630.8,2630.7,0.08482679]
[1729247131348,7.22114896,2630.8,2630.7,0.08482679]
[1729247136062,10.22114896,2630.8,2630.7,0.08482679]
[1729247136264,8.55486081,2630.8,2630.6,0.05702928]
[1729247136465,6.32303423,2630.7,2630.6,0.05702928]
[1729247137875,6.32303423,2630.7,2630.0,0.7591]
[1729247137876,3.80179,2630.4,2630.0,0.7591]
[1729247138083,1.66628815,2630.2,2630.0,0.7591]
[1729247140088,3.80193,2630.3,2630.0,0.7591]
[1729247140089,5.46821815,2630.3,2630.0,0.7591]
[1729247140403,1.66628815,2630.2,2630.0,0.7591]
[1729247142605,5.46821815,2630.3,2630.0,0.7591]
[1729247142769,1.66628815,2630.2,2630.0,0.7591]
[1729247143885,5.46821815,2630.3,2630.0,0.7591]
[1729247144085,1.66628815,2630.2,2630.0,0.7591]
[1729247145085,5.46821815,2630.3,2630.0,0.7591]
[1729247145292,1.66628815,2630.2,2630.0,0.7591]
[1729247146790,1.66628815,2630.2,2630.1,0.08249988]
[1729247148306,5.46827815,2630.2,2630.1,0.08249988]
[1729247150111,6.22357815,2630.2,2630.1,0.08249988]
[1729247150281,2.96841597,2630.2,2629.8,0.0570457]
[1729247150482,5.46870815,2629.9,2629.8,0.0570457]
[1729247150933,5.46870815,2629.9,2629.8,0.14000274]
[1729247151085,7.19320697,2629.9,2629.8,0.08295704]
[1729247151427,3.80278,2629.7,2629.2,1.99982582]
[1729247151627,3.80278,2629.7,2629.2,4.60953]
[1729247151810,3.80278,2629.7,2629.3,0.08345989]
[1729247152017,7.60562,2629.7,2629.3,0.08345989]
[1729247152189,3.80278,2629.7,2629.3,0.08345989]
[1729247152631,5.46906815,2629.7,2629.3,0.08345989]
[1729247152931,1.66628815,2629.6,2629.3,0.84636416]
[1729247153230,5.46906815,2629.7,2629.3,0.84636416]
[1729247156938,3.80257,2629.8,2629.3,0.84636416]
[1729247157088,3.8025,2629.9,2629.4,6.3249069]
[1729247157289,5.46878815,2629.9,2629.5,0.80058479]
[1729247157730,1.66628815,2629.8,2629.5,0.80058479]
[1729247157905,5.46878815,2629.9,2629.5,0.80058479]
[1729247158248,1.66628815,2629.8,2629.5,0.80058479]